bitfinex-derivatives/quotes_ETHF0:USTF0_20210110
["timestamp","ask_amount","ask_price","bid_price","bid_amount"]
[1610276656668,6.19179,1310.7,1308.9,2.2797]
[1610276656868,6.19179,1310.7,1308.8,30.0]
[1610276657070,4.00959,1309.4,1309.3,4.00959]
[1610276657270,4.00959,1309.4,1308.8,30.0]
[1610276657469,4.00959,1309.4,1308.3,4.20833249]
[1610276657670,4.00959,1309.4,1308.1,4.20868264]
[1610276657870,4.00959,1309.4,1308.1,34.20868264]
[1610276658070,4.00959,1309.4,1308.1,30.0]
[1610276658269,4.00959,1309.4,1308.1,34.20901384]
[1610276658769,4.00959,1309.4,1308.1,30.0]
[1610276658969,4.00959,1309.4,1308.0,4.20895095]
[1610276659171,4.00959,1309.0,1308.9,4.00959]
[1610276659772,4.00959,1309.0,1307.9,30.99041]
[1610276660171,5.92849,1309.0,1307.9,30.99041]
[1610276660572,5.92849,1309.0,1307.9,0.99041]
[1610276661171,4.00959,1308.4,1308.1,4.00959]
[1610276661372,6.30129,1308.4,1307.9,0.99041]
[1610276663174,4.00959,1308.0,1307.9,0.99041]
[1610276663376,6.40389,1308.0,1307.9,0.99041]
[1610276668676,2.3943,1308.0,1307.9,0.99041]
[1610276669078,4.00959,1308.7,1307.9,5.0]
[1610276670480,4.00959,1308.7,1307.9,4.00959]
[1610276671081,3.01918,1308.7,1308.5,4.00959]
[1610276671281,45.9129,1308.8,1308.5,4.00959]
[1610276673082,45.9129,1308.8,1308.7,4.00959]
[1610276674885,62.8314,1310.5,1308.7,4.00959]
[1610276675088,4.00959,1309.3,1309.2,4.00959]
[1610276675286,62.8314,1310.5,1310.4,3.0]
[1610276675491,62.8314,1310.5,1310.2,3.0]
[1610276676093,62.8314,1310.5,1309.5,3.0]
[1610276676293,62.8314,1310.5,1307.8,30.0]
[1610276676498,62.8314,1310.5,1309.5,3.0]
[1610276676693,92.8314,1310.5,1307.2,4.20926877]
[1610276676894,94.5533,1310.5,1307.1,6.17668556]
[1610276677094,94.5533,1310.5,1308.1,4.00959]
[1610276677494,1.7219,1310.5,1308.1,4.00959]
[1610276677696,1.7219,1310.5,1307.4,1.7818]
[1610276678397,1.7219,1310.5,1307.0,30.0]
[1610276678597,1.7219,1310.5,1306.7,4.21095691]
[1610276678998,30.0,1310.4,1306.6,4.21022682]
[1610276679198,4.00959,1307.2,1306.9,4.00959]
[1610276681200,4.00959,1307.0,1306.9,4.00959]
[1610276681400,4.00959,1307.0,1306.0,4.20830126]
[1610276681600,4.00959,1307.0,1305.9,4.2101823]
[1610276681802,4.00959,1307.0,1305.8,4.21231647]
[1610276682204,4.00959,1307.0,1305.9,30.0]
[1610276682404,4.00959,1307.0,1305.9,32.0086]
[1610276682603,1.7898,1307.2,1306.4,3.74517013]
[1610276683207,4.00959,1306.6,1306.4,3.74517013]
[1610276683805,1.7898,1307.2,1306.4,3.74517013]
[1610276684206,1.7898,1307.2,1306.5,3.74051235]
[1610276684607,1.7898,1307.2,1306.6,3.73703007]
[1610276685206,4.00959,1307.1,1307.0,4.00959]
[1610276685606,1.7898,1307.2,1307.0,4.00959]
[1610276685809,1.7898,1307.2,1306.7,3.73226611]
[1610276686006,2.3245,1307.5,1306.7,3.73226611]
[1610276686206,37.3815,1310.5,1306.7,3.73226611]
[1610276686407,37.3815,1310.5,1306.8,3.72902983]
[1610276687008,37.3815,1310.5,1306.7,3.72610587]
[1610276687207,7.3815,1310.5,1307.2,4.00959]
[1610276688211,37.3815,1310.5,1307.2,4.00959]
[1610276689010,7.3815,1310.5,1307.2,4.00959]
[1610276689210,7.3815,1310.5,1308.2,4.00959]
[1610276689413,2.2966,1308.3,1308.2,4.00959]
[1610276690411,1.9542,1308.6,1308.2,4.00959]
[1610276691212,1.9542,1308.6,1308.5,4.00959]
[1610276691412,4.00959,1308.9,1308.5,4.00959]
[1610276692612,1.7219,1310.5,1308.5,4.00959]
[1610276692812,3.405,1311.0,1308.5,4.00959]
[1610276693212,4.00959,1309.3,1309.0,4.00959]
[1610276693413,4.00959,1309.3,1308.2,1.7231]
[1610276695218,4.00959,1308.5,1308.3,4.00959]
[1610276695819,2.3745,1308.6,1308.3,4.00959]
[1610276697221,2.3745,1308.6,1308.5,4.00959]
[1610276697823,4.00959,1309.2,1307.9,3.66256172]
[1610276698024,2.1932,1308.9,1307.8,5.22566971]
[1610276698725,2.1932,1308.9,1307.8,1.5647]
[1610276699223,4.00959,1308.5,1308.0,4.00959]
[1610276700524,1.5433,1308.6,1308.0,4.00959]
[1610276700724,1.5433,1308.6,1308.0,34.00959]
[1610276701125,2.1932,1308.9,1308.0,34.00959]
[1610276701328,2.1932,1308.9,1308.8,4.00959]
[1610276701726,2.1932,1308.9,1308.8,34.00959]
[1610276702826,2.1932,1308.9,1308.8,4.00959]
[1610276703029,2.0881,1309.4,1308.8,4.00959]
[1610276703227,4.00959,1309.6,1309.3,4.00959]
[1610276703426,5.6379,1310.9,1309.3,4.00959]
[1610276703628,5.6379,1310.9,1308.8,30.0]
[1610276703930,61.5051,1309.8,1308.8,30.0]
[1610276704430,61.5051,1309.8,1308.5,30.0]
[1610276705230,61.5051,1309.8,1309.7,34.00959]
[1610276705631,2.3543,1309.8,1309.7,34.00959]
[1610276706031,52.116,1310.8,1309.7,34.00959]
[1610276707233,52.116,1310.8,1310.6,4.00959]
[1610276707532,52.116,1310.8,1309.2,33.6471487]
[1610276707931,54.3045,1310.8,1309.2,33.6471487]
[1610276708631,54.3045,1310.8,1309.2,30.0]
[1610276709231,4.00959,1310.4,1310.0,4.00959]
[1610276709431,1.652,1310.4,1310.0,4.00959]
[1610276711333,1.652,1310.4,1310.3,4.00959]
[1610276712136,1.652,1310.4,1309.2,33.6478505]
[1610276712335,4.00959,1310.7,1310.4,1.348]
[1610276713236,4.00959,1310.5,1310.4,1.348]
[1610276713437,1.8106,1310.5,1310.4,1.348]
[1610276715339,1.8106,1310.5,1310.4,5.35759]
[1610276715739,1.8106,1310.5,1310.4,1.348]
[1610276717241,5.82019,1310.5,1310.4,1.348]
[1610276718243,1.8106,1310.5,1310.4,1.348]
[1610276718443,53.0182,1311.9,1310.4,1.348]
[1610276719345,5.69289,1310.7,1310.4,1.348]
[1610276719545,1.6833,1310.7,1310.4,1.348]
[1610276721345,1.6833,1310.7,1310.6,4.00959]
[1610276722349,4.00959,1311.6,1310.7,0.3167]
[1610276723250,4.00959,1311.6,1311.4,4.00959]
[1610276723551,4.00959,1311.6,1310.7,0.3167]
[1610276723752,5.88129,1311.6,1310.7,0.3167]
[1610276724552,1.8717,1311.6,1310.7,0.3167]
[1610276725252,1.8717,1311.6,1311.5,4.00959]
[1610276728958,24.0,1312.0,1311.5,4.00959]
[1610276729259,28.00959,1312.0,1311.9,4.00959]
[1610276729859,24.0,1312.0,1311.9,4.00959]
[1610276730962,24.0,1312.0,1310.2,30.0]
[1610276731164,24.3996,1312.0,1310.2,30.0]
[1610276731365,28.40919,1312.0,1311.6,4.00959]
[1610276735366,24.3996,1312.0,1311.8,4.00959]
[1610276735866,24.3996,1312.0,1310.1,32.3462]
[1610276736066,24.3996,1312.0,1310.1,2.3462]
[1610276736265,24.3996,1312.0,1309.9,30.0]
[1610276737069,24.3996,1312.0,1309.7,33.4660078]
[1610276737268,5.7935,1311.9,1309.7,33.4660078]
[1610276737468,5.7935,1311.9,1311.4,4.00959]
[1610276739368,4.00959,1311.8,1311.4,4.00959]
[1610276740371,5.7935,1311.9,1311.4,4.00959]
[1610276741071,5.7435,1311.9,1311.4,4.00959]
[1610276741472,5.7435,1311.9,1311.8,4.00959]
[1610276742777,5.6435,1311.9,1311.8,4.00959]
[1610276743177,5.6435,1311.9,1310.2,1.9405]
[1610276743377,9.65309,1311.9,1311.8,4.00959]
[1610276743577,5.6435,1311.9,1311.8,4.00959]
[1610276754287,5.6435,1311.9,1310.2,5.47244928]
[1610276754586,5.6435,1311.9,1310.2,1.9405]
[1610276754787,5.6435,1311.9,1309.9,3.53837817]
[1610276755187,5.6435,1311.9,1309.8,3.54230428]
[1610276755389,4.00959,1311.1,1310.9,4.00959]
[1610276755789,6.21459,1311.1,1310.9,4.00959]
[1610276755989,6.21459,1311.1,1309.7,3.54063737]
[1610276756389,6.21459,1311.1,1309.6,35.55383379]
[1610276756590,2.205,1311.1,1309.6,35.55383379]
[1610276757490,4.00959,1311.0,1309.6,5.55383379]
[1610276757891,4.00959,1311.0,1309.6,3.54413379]
[1610276758091,4.00959,1311.0,1309.5,3.54099295]
[1610276758291,2.205,1311.1,1309.5,33.54099295]
[1610276758692,2.205,1311.1,1309.7,3.53923608]
[1610276758892,2.205,1311.1,1309.7,35.86303608]
[1610276759095,2.205,1311.1,1310.4,3.09698905]
[1610276759392,2.205,1311.1,1311.0,4.00959]
[1610276760894,24.3996,1312.0,1311.0,4.00959]
[1610276761294,24.3996,1312.0,1311.0,7.09961741]
[1610276761495,24.3996,1312.0,1311.9,4.00959]
[1610276761695,19.5496,1312.0,1311.9,4.00959]
[1610276768707,19.2963,1312.0,1311.9,4.00959]
[1610276768905,15.8963,1312.0,1311.9,4.00959]
[1610276769307,14.5496,1312.0,1311.9,4.00959]
[1610276776016,14.5496,1312.0,1311.9,34.00959]
[1610276776214,7.4853,1312.0,1311.9,34.00959]
[1610276777213,7.4853,1312.0,1311.9,4.00959]
[1610276778317,7.4853,1312.0,1311.9,37.04167759]
[1610276779020,7.4853,1312.0,1311.9,34.00959]
[1610276779420,7.4853,1312.0,1311.9,37.03918514]
[1610276779822,7.4853,1312.0,1311.9,36.34159]
[1610276786525,5.905,1312.0,1311.9,36.34159]
[1610276786724,5.1145,1312.0,1311.9,36.34159]
[1610276786925,5.1145,1312.0,1311.9,39.78693675]
[1610276787327,4.8645,1312.0,1311.9,39.78693675]
[1610276788427,4.4645,1312.0,1311.9,39.78693675]
[1610276788627,4.4645,1312.0,1311.9,36.34159]
[1610276789229,3.2855,1312.0,1311.9,36.34159]
[1610276789428,2.4853,1312.0,1311.9,36.34159]
[1610276791838,2.4853,1312.0,1311.9,39.79719626]
[1610276792942,2.4853,1312.0,1311.9,36.34159]
[1610276793544,2.4853,1312.0,1311.9,39.80102376]
[1610276794846,2.0067,1313.3,1312.5,0.5147]
[1610276795246,2.0067,1313.3,1313.0,2.60070255]
[1610276795446,2.0067,1313.3,1313.1,30.0]
[1610276795646,2.0067,1313.3,1313.1,34.00959]
[1610276796346,2.0067,1313.3,1313.1,4.00959]
[1610276796951,2.0067,1313.3,1313.1,34.00959]
[1610276797149,2.0067,1313.3,1313.1,36.61847747]
[1610276798051,2.0067,1313.3,1313.1,34.00959]
[1610276799955,2.0067,1313.3,1313.1,4.00959]
[1610276800153,2.0067,1313.3,1313.1,34.00959]
[1610276802154,1.6089,1313.9,1313.1,34.00959]
[1610276802354,1.6089,1313.9,1313.1,37.06567074]
[1610276802654,10.0,1313.2,1313.1,34.00959]
[1610276804259,10.0,1313.2,1313.1,35.96639]
[1610276805359,10.0,1313.2,1313.1,39.45316533]
[1610276806661,10.0,1313.2,1313.1,35.96639]
[1610276807066,10.0,1313.2,1313.1,39.45539933]
[1610276807264,10.0,1313.2,1313.1,35.96639]
[1610276808264,10.0,1313.2,1313.1,39.46205551]
[1610276809566,10.0,1313.2,1313.1,35.96639]
[1610276817179,10.0,1313.2,1313.1,5.96639]
[1610276817377,10.0,1313.2,1313.1,4.00959]
[1610276817578,10.0,1313.2,1313.1,7.55951343]
[1610276818178,10.0,1313.2,1313.1,4.00959]
[1610276820085,10.0,1313.2,1313.1,7.11949806]
[1610276821785,10.0,1313.2,1313.1,4.00959]
[1610276823688,10.0,1313.2,1313.1,7.12338315]
[1610276824991,10.0,1313.2,1313.1,4.00959]
[1610276825190,10.0,1313.2,1313.0,3.1207271]
[1610276825391,10.0,1313.2,1312.8,3.12446778]
[1610276825792,4.00959,1313.1,1312.8,4.00959]
[1610276828594,10.0,1313.2,1312.8,4.00959]
[1610276829796,10.0,1313.2,1312.8,7.15357075]
[1610276829995,10.0,1313.2,1313.1,4.00959]
[1610276832201,10.0,1313.2,1312.5,0.5147]
[1610276832202,10.0,1313.2,1312.6,3.15174874]
[1610276832602,10.0,1313.2,1312.5,3.66898506]
[1610276832901,10.0,1313.2,1312.5,0.5147]
[1610276833901,4.00959,1313.0,1312.9,4.00959]
[1610276834102,1.6526,1313.0,1312.9,4.00959]
[1610276836905,1.6526,1313.0,1312.9,7.18175392]
[1610276837806,1.6526,1313.0,1312.9,37.18175392]
[1610276838007,1.6526,1313.0,1312.9,34.00959]
[1610276838811,1.6526,1313.0,1312.9,4.00959]
[1610276839209,10.0,1313.2,1312.9,4.00959]
[1610276839411,10.0,1313.2,1312.9,34.00959]
[1610276839910,10.0,1313.2,1313.1,4.00959]
[1610276840112,10.0,1313.2,1313.1,34.00959]
[1610276842211,10.0,1313.2,1313.1,12.00959]
[1610276843211,10.0,1313.2,1312.9,15.62351397]
[1610276843712,10.0,1313.2,1313.0,3.61154756]
[1610276843914,10.0,1313.2,1313.1,4.00959]
[1610276844113,10.0,1313.2,1313.1,7.61795122]
[1610276845318,10.0,1313.2,1313.1,4.00959]
[1610276846915,10.0,1313.2,1313.1,7.61590296]
[1610276848219,10.0,1313.2,1313.1,4.00959]
[1610276848419,10.0,1313.2,1313.1,16.01918]
[1610276850019,11.5523,1313.2,1313.1,16.01918]
[1610276850519,11.5523,1313.2,1313.1,4.00959]
[1610276851019,11.5523,1313.2,1313.1,16.01918]
[1610276852519,11.3906,1313.2,1313.1,19.60707216]
[1610276852819,11.2236,1313.2,1313.1,16.01918]
[1610276853018,10.4764,1313.2,1313.1,16.01918]
[1610276853421,10.4764,1313.2,1313.1,19.60439944]
[1610276853722,10.1278,1313.2,1313.1,19.60439944]
[1610276853920,10.1278,1313.2,1313.1,16.01918]
[1610276854121,9.3626,1313.2,1313.1,16.01918]
[1610276854520,9.3626,1313.2,1313.1,7.59390298]
[1610276854921,6.9929,1313.2,1313.1,7.59390298]
[1610276855324,6.9929,1313.2,1313.1,4.00959]
[1610276857629,6.9929,1313.2,1312.6,3.58510555]
[1610276857832,6.9929,1313.2,1313.1,3.13821421]
[1610276858231,6.9929,1313.2,1312.9,3.13976898]
[1610276860031,6.9929,1313.2,1313.1,4.00959]
[1610276861231,6.9929,1313.2,1313.1,7.13789116]
[1610276861633,6.9929,1313.2,1313.1,4.00959]
[1610276862032,11.00249,1313.2,1313.1,4.00959]
[1610276862832,6.9929,1313.2,1313.1,4.00959]
[1610276863634,6.9929,1313.2,1313.1,7.1289837]
[1610276863834,6.9929,1313.2,1313.1,4.00959]
[1610276869639,6.9929,1313.2,1313.1,7.11846088]
[1610276870844,6.9929,1313.2,1313.1,4.00959]
[1610276872445,6.9929,1313.2,1313.0,3.10529247]
[1610276873044,6.9929,1313.2,1312.9,3.10424061]
[1610276873645,6.9929,1313.2,1312.8,3.11677575]
[1610276873945,4.00959,1312.9,1312.8,3.11677575]
[1610276874145,5.85579,1312.9,1312.8,3.11677575]
[1610276874347,5.85579,1312.9,1312.7,3.12280157]
[1610276875047,5.85579,1312.9,1312.5,4.52429]
[1610276875048,1.8462,1312.9,1312.6,3.12663467]
[1610276875247,1.8462,1312.9,1312.7,3.12721866]
[1610276875650,1.8462,1312.9,1312.8,3.12769115]
[1610276876650,1.8462,1312.9,1312.7,4.00959]
[1610276878854,1.8462,1312.9,1312.8,3.11268389]
[1610276879154,6.9929,1313.2,1312.8,3.11268389]
[1610276879754,6.9929,1313.2,1313.1,2.66454873]
[1610276883057,6.9929,1313.2,1312.8,3.11578974]
[1610276883459,6.9929,1313.2,1312.9,3.11569019]
[1610276884062,6.9929,1313.2,1313.1,4.00959]
[1610276885864,6.9929,1313.2,1313.0,3.11186694]
[1610276886063,4.00959,1313.1,1313.0,3.11186694]
[1610276886263,4.00959,1313.1,1312.8,7.12187082]
[1610276886867,4.00959,1313.1,1312.8,4.00959]
[1610276888064,4.00959,1312.9,1312.8,4.00959]
[1610276888265,5.76579,1312.9,1312.8,4.00959]
[1610276889367,5.76579,1312.9,1312.7,3.10596449]
[1610276889769,5.76579,1312.9,1312.6,3.10869476]
[1610276889970,4.00959,1312.7,1312.6,3.10869476]
[1610276890169,4.00959,1312.7,1312.5,3.62670298]
[1610276890971,4.00959,1312.7,1312.5,0.5147]
[1610276892176,4.00959,1312.7,1312.3,3.12015435]
[1610276892373,4.00959,1312.7,1312.6,2.6777681]
[1610276892973,34.00959,1312.7,1312.5,2.6814737]
[1610276893173,34.00959,1312.7,1312.1,3.12838598]
[1610276893372,34.00959,1312.7,1312.4,2.68452419]
[1610276893772,34.00959,1312.7,1312.3,2.68816976]
[1610276893975,4.00959,1312.4,1312.3,2.68816976]
[1610276894374,4.00959,1312.4,1312.2,2.69182497]
[1610276894574,4.00959,1312.4,1311.8,3.14046247]
[1610276894973,4.00959,1312.4,1311.2,3.58570599]
[1610276894974,4.00959,1312.4,1311.7,3.1430553]
[1610276895876,5.96449,1312.4,1311.7,3.1430553]
[1610276896076,4.00959,1311.8,1311.7,3.1430553]
[1610276896276,6.33879,1311.8,1311.6,3.14656073]
[1610276896881,6.33879,1311.8,1311.3,3.1514635]
[1610276897282,6.33879,1311.8,1311.2,3.15457894]
[1610276897881,6.33879,1311.8,1311.0,3.15936108]
[1610276898082,4.00959,1311.1,1311.0,3.15936108]
[1610276898282,4.00959,1311.1,1310.4,3.61069838]
[1610276898482,4.00959,1311.1,1311.0,3.16281802]
[1610276899287,4.00959,1311.1,1310.8,3.16354722]
[1610276899489,5.98709,1311.1,1310.7,3.16731063]
[1610276899887,5.98709,1311.1,1308.0,3.405]
[1610276899888,5.98709,1311.1,1310.5,3.17128263]
[1610276900086,4.00959,1310.6,1310.5,3.17128263]
[1610276900286,4.00959,1310.6,1308.4,4.53040375]
[1610276900287,5.68329,1310.6,1310.3,3.17463195]
[1610276900486,5.68329,1310.6,1310.4,3.17953444]
[1610276900888,5.68329,1310.6,1310.3,3.18087394]
[1610276901688,5.68329,1310.6,1310.2,3.18767807]
[1610276901888,5.68329,1310.6,1310.1,3.18797318]
[1610276902092,4.00959,1310.2,1310.1,3.18797318]
[1610276902490,6.14439,1310.2,1309.9,3.19373135]
[1610276902888,6.14439,1310.2,1309.8,3.19538795]
[1610276903288,6.14439,1310.2,1119.4,0.85250472]
[1610276903289,6.14439,1310.2,1309.6,3.19859811]
[1610276903488,6.14439,1310.2,1308.9,3.6555407]
[1610276903690,6.14439,1310.2,1309.5,3.2005708]
[1610276903889,63.3958,1309.8,1308.8,3.65795914]
[1610276904089,4.00959,1308.9,1308.8,3.65795914]
[1610276904289,5.53719,1308.9,1308.6,3.66148012]
[1610276904889,5.53719,1308.9,1308.5,3.665013]
[1610276905988,5.53719,1308.9,1307.8,4.12313962]
[1610276905989,5.53719,1308.9,1308.4,3.66356794]
[1610276906188,5.97989,1308.6,1308.4,3.66356794]
[1610276906789,1.9703,1308.6,1308.4,3.66356794]
[1610276906990,1.9703,1308.6,1308.5,3.65831724]
[1610276907989,5.97989,1308.6,1308.5,3.65831724]
[1610276908391,1.9703,1308.6,1308.5,3.65831724]
[1610276908790,1.9703,1308.6,1307.9,4.11412044]
[1610276909090,1.9703,1308.6,1308.0,4.12188206]
[1610276909890,1.9703,1308.6,1308.1,4.1245508]
[1610276910090,1.9703,1308.6,1308.5,4.00959]
[1610276911391,4.00959,1308.8,1308.5,4.00959]
[1610276911991,1.5276,1308.9,1308.5,4.00959]
[1610276912193,4.00959,1309.2,1308.8,4.00959]
[1610276912392,6.0683,1310.1,1308.8,4.00959]
[1610276912691,2.1348,1310.2,1310.0,2.74376444]
[1610276912892,5.87,1311.7,1308.9,3.65835258]
[1610276913092,5.9645,1311.6,1308.9,3.65835258]
[1610276913391,5.9645,1311.6,1309.0,3.6586548]
[1610276913692,5.9645,1311.6,1309.7,3.20318364]
[1610276913993,5.9645,1311.6,1309.8,3.20223122]
[1610276914194,4.00959,1309.9,1309.8,3.20223122]
[1610276914593,6.31149,1309.9,1309.8,3.20223122]
[1610276915397,6.31149,1309.9,1309.7,3.20908781]
[1610276915801,6.31149,1309.9,1309.8,3.20889076]
[1610276916798,6.31149,1309.9,1309.6,4.00959]
[1610276917000,1.8613,1309.9,1309.6,4.00959]
[1610276918197,1.8613,1309.9,1309.6,7.67383891]
[1610276918198,5.87089,1309.9,1309.6,7.67383891]
[1610276918597,5.87089,1309.9,1309.6,4.00959]
[1610276918799,1.8613,1309.9,1309.6,7.67142775]
[1610276919399,1.8613,1309.9,1309.7,3.65862738]
[1610276919600,5.9645,1311.6,1309.7,3.65862738]
[1610276919999,5.9645,1311.6,1310.5,3.19603353]
[1610276920199,5.9645,1311.6,1310.6,3.19651085]
[1610276920500,5.9645,1311.6,1310.7,3.19584995]
[1610276921300,5.9645,1311.6,1310.8,3.19403992]
[1610276922001,5.9645,1311.6,1310.9,3.19461794]
[1610276922204,6.34739,1311.5,1311.2,4.00959]
[1610276923305,6.34739,1311.5,1311.2,3.18873941]
[1610276923907,6.34739,1311.5,1311.1,3.18718688]
[1610276924107,4.00959,1311.2,1311.1,3.18718688]
[1610276924309,4.00959,1311.2,1311.0,7.19589625]
[1610276924508,5.52279,1311.2,1311.0,7.19589625]
[1610276925308,5.52279,1311.2,1311.1,3.18067029]
[1610276925909,5.52279,1311.2,1309.7,4.08861153]
[1610276925910,5.52279,1311.2,1310.9,3.18215575]
[1610276926111,4.00959,1311.0,1310.9,3.18215575]
[1610276926311,4.00959,1311.0,1310.8,3.18354128]
[1610276926511,4.00959,1311.0,1310.6,3.18548158]
[1610276926711,65.44879,1311.0,1310.6,3.18548158]
[1610276926914,65.44879,1311.0,1310.8,2.73198205]
[1610276927313,65.44879,1311.0,1310.7,2.73226381]
[1610276927511,65.44879,1311.0,1310.6,2.73178731]
[1610276928112,4.00959,1310.7,1310.6,2.73178731]
[1610276928314,6.29949,1310.7,1310.5,2.73604105]
[1610276928713,6.29949,1310.7,1310.3,2.7379339]
[1610276929116,6.29949,1310.7,1310.1,2.74020512]
[1610276929316,6.29949,1310.7,1310.0,2.74187519]
[1610276929716,6.29949,1310.7,1309.9,2.74166546]
[1610276930116,4.00959,1310.0,1309.9,2.74166546]
[1610276930317,4.00959,1310.0,1309.8,2.74188726]
[1610276930515,6.15579,1310.0,1309.8,2.74188726]
[1610276930719,6.15579,1310.0,1309.6,2.74391416]
[1610276931517,6.15579,1310.0,1309.5,2.74281189]
[1610276932116,4.00959,1309.6,1309.1,3.19994721]
[1610276932516,4.00959,1309.6,1309.0,3.19930662]
[1610276933318,5.82339,1309.6,1309.0,3.19930662]
[1610276933520,5.82339,1309.6,1309.3,3.18970203]
[1610276933920,1.8138,1309.6,1309.3,3.18970203]
[1610276934120,5.82339,1309.6,1309.5,4.00959]
[1610276934317,1.8138,1309.6,1309.5,4.00959]
[1610276934917,1.8138,1309.6,1309.0,3.63194167]
[1610276935420,1.8138,1309.6,1308.9,3.62911505]
[1610276935819,1.8138,1309.6,1309.4,3.17999489]
[1610276936218,4.00959,1309.5,1309.4,3.17999489]
[1610276936820,4.00959,1309.5,1309.0,4.00959]
[1610276938020,4.00959,1309.5,1308.9,3.62810024]
[1610276938223,4.00959,1309.0,1308.8,3.63254271]
[1610276938422,6.19429,1309.0,1308.8,3.63254271]
[1610276938623,6.19429,1309.0,1308.7,3.63523944]
[1610276938826,6.19429,1309.0,1308.6,3.64044969]
[1610276939522,6.19429,1309.0,1308.5,7.64917311]
[1610276940124,4.00959,1308.6,1308.5,7.64917311]
[1610276940323,6.00429,1308.6,1308.5,3.63958311]
[1610276940724,6.00429,1308.6,1308.3,3.63731693]
[1610276940924,6.00429,1308.6,1308.2,3.6366999]
[1610276941324,1.9947,1308.6,1308.1,3.63694034]
[1610276941724,1.9947,1308.6,1308.2,3.63532088]
[1610276941925,1.9947,1308.6,1308.3,3.63362366]
[1610276942125,1.9947,1308.6,1308.5,4.00959]
[1610276945229,1.9947,1308.6,1308.5,7.65970872]
[1610276945429,2.1847,1309.0,1308.5,4.00959]
[1610276945629,1.8138,1309.6,1308.5,4.00959]
[1610276945830,30.0,1311.9,1308.5,4.00959]
[1610276946030,5.9972,1310.7,1309.3,3.1913323]
[1610276946232,4.00959,1309.4,1309.3,3.1913323]
[1610276946430,4.00959,1309.4,1307.8,2.0943]
[1610276946431,5.71839,1309.4,1308.8,3.64590933]
[1610276946630,5.71839,1309.4,1309.3,3.19188929]
[1610276947631,5.71839,1309.4,1308.7,3.64723884]
[1610276948031,5.71839,1309.4,1308.9,3.64257218]
[1610276948232,5.71839,1309.4,1309.3,4.00959]
[1610276948632,1.7088,1309.4,1309.3,4.00959]
[1610276949434,6.0458,1310.7,1309.3,4.00959]
[1610276950135,6.0458,1310.7,1309.7,3.17297007]
[1610276950335,4.00959,1309.8,1309.7,3.17297007]
[1610276950535,6.51299,1309.8,1309.7,3.17297007]
[1610276950936,6.51299,1309.8,1309.6,3.17327403]
[1610276951339,6.51299,1309.8,1308.8,3.62896506]
[1610276951538,6.51299,1309.8,1309.5,3.17706049]
[1610276951937,2.5034,1309.8,1309.6,3.17830184]
[1610276952338,2.5034,1309.8,1309.7,7.18737186]
[1610276952538,2.5034,1309.8,1309.7,4.00959]
[1610276953138,2.5034,1309.8,1309.2,3.63024792]
[1610276953339,2.5034,1309.8,1309.7,3.18342672]
[1610276954238,6.51299,1309.8,1309.7,3.18342672]
[1610276954439,6.51299,1309.8,1308.1,1.5942]
[1610276954440,6.51299,1309.8,1309.4,3.19263893]
[1610276954639,6.51299,1309.8,1309.2,3.19556835]
[1610276955039,6.51299,1309.8,1308.5,3.65207811]
[1610276955040,6.51299,1309.8,1309.1,3.19791956]
[1610276955640,6.51299,1309.8,1309.0,3.20212047]
[1610276956042,6.51299,1309.8,1308.9,3.20437818]
[1610276956241,4.00959,1309.0,1308.9,3.20437818]
[1610276956644,6.28059,1309.0,1308.5,4.00959]
[1610276957444,6.28059,1309.0,1308.3,3.65956625]
[1610276957645,6.28059,1309.0,1308.9,3.21649631]
[1610276957845,6.28059,1309.0,1308.8,3.21846851]
[1610276958545,6.28059,1309.0,1308.7,3.22215083]
[1610276958944,6.28059,1309.0,1308.8,3.22465001]
[1610276959544,6.28059,1309.0,1308.6,3.23019086]
[1610276959944,6.28059,1309.0,1306.9,1.6044]
[1610276959945,6.28059,1309.0,1308.5,3.23242737]
[1610276960144,6.28059,1309.0,1308.4,3.23690359]
[1610276960344,4.00959,1308.5,1308.4,3.23690359]
[1610276960544,5.89399,1308.5,1308.4,3.23690359]
[1610276961447,5.89399,1308.5,1308.2,3.24189997]
[1610276961846,5.89399,1308.5,1308.1,3.24321711]
[1610276962246,4.00959,1308.2,1308.0,3.24350477]
[1610276962446,4.00959,1308.2,1307.9,3.24404557]
[1610276962646,6.06079,1308.2,1307.9,3.24404557]
[1610276962847,6.06079,1308.2,1307.6,3.24926846]
[1610276963247,6.06079,1308.2,1305.5,4.64181208]
[1610276963248,6.06079,1308.2,1307.5,3.2529276]
[1610276963850,6.06079,1308.2,1307.6,3.25466161]
[1610276964248,4.00959,1307.7,1307.6,3.25466161]
[1610276964649,6.02929,1307.7,1307.6,3.25466161]
[1610276965249,6.02929,1307.7,1307.0,3.7185446]
[1610276965449,6.02929,1307.7,1307.1,3.71424521]
[1610276965849,6.02929,1307.7,1307.2,3.71367176]
[1610276966049,6.02929,1307.7,1307.3,3.71134492]
[1610276966249,6.02929,1307.7,1307.5,4.00959]
[1610276966449,2.0197,1307.7,1307.5,4.00959]
[1610276966851,2.0197,1307.7,1307.5,7.7179621]
[1610276967052,2.0197,1307.7,1307.6,3.70675295]
[1610276967650,2.0197,1307.7,1307.5,7.71780374]
[1610276968251,2.0197,1307.7,1307.5,3.70821374]
[1610276968652,2.0197,1307.7,1307.4,3.71025975]
[1610276969053,2.0197,1307.7,1307.3,3.71388821]
[1610276969655,4.00959,1307.9,1307.2,3.71744975]
[1610276969855,2.2867,1307.7,1307.2,3.71744975]
[1610276970255,6.29629,1307.7,1307.6,4.00959]
[1610276970656,2.2867,1307.7,1307.6,4.00959]
[1610276971061,2.2867,1307.7,1307.6,7.72414633]
[1610276971864,6.1165,1308.4,1307.7,2.7133]
[1610276972062,6.1165,1308.4,1307.9,3.71072745]